Workbook

Sheet 资产负债表
A1: 资产负债表
A2: 公开01表
A3: 单位：安徽汽车职业技术学院 | F3: 金额单位：万元
A4: 项 目 | B4: 2024-12-31 | C4: 2023-12-31 | D4: 项 目 | E4: 2024-12-31 | F4: 2023-12-31
A5: 流动资产： | D5: 流动负债：
A6: 货币资金 | B6: =[1]BS!$F$6/10000 -> 17472.63 | C6: =[1]BS!$B$6/10000 -> 13584.25 | D6: 短期借款 | E6: =[1]BS!F81 -> 0 | F6: 0
A7: 交易性金融资产 | B7: =[1]BS!$F$7 -> 0 | C7: =[1]BS!$B$7 -> 0 | D7: 交易性金融负债 | E7: =[1]BS!F82 -> 0 | F7: 0
A8: 衍生金融资产 | B8: =[1]BS!$F$8 -> 0 | C8: =[1]BS!$B$8 -> 0 | D8: 衍生金融负债 | E8: =[1]BS!F83 -> 0 | F8: 0
A9: 应收票据 | B9: =[1]BS!$F$11 -> 0 | C9: =[1]BS!$B$11 -> 0 | D9: 应付票据 | E9: =[1]BS!F84 -> 0 | F9: 0
A10: 应收账款 | B10: =[1]BS!$F$14/10000 -> 129.78 | C10: =[1]BS!$B$14/10000 -> 225.84 | D10: 应付账款 | E10: =[1]BS!F85 -> 0 | F10: =[1]BS!B85 -> 0
A11: 应收款项融资 | B11: =[1]BS!$F$15 -> 0 | C11: =[1]BS!$B$15 -> 0 | D11: 预收款项 | E11: =[1]BS!F86/10000 -> 391.74 | F11: =[1]BS!B86/10000 -> 325.50
A12: 预付款项 | B12: =[1]BS!$F$16 -> 0 | C12: =[1]BS!$B$16 -> 0 | D12: 合同负债 | E12: =[1]BS!F87 -> 0 | F12: =[1]BS!B87 -> 0
A13: 其他应收款 | B13: =[1]BS!$F$22/10000 -> 51.81 | C13: =[1]BS!$B$22/10000 -> 39.03 | D13: 应付职工薪酬 | E13: =[1]BS!F88/10000 -> 603.69 | F13: =[1]BS!B88/10000 -> 574.76
A14: 存货 | B14: =[1]BS!$F$25 -> 0 | C14: =[1]BS!$B$25 -> 0 | D14: 应交税费 | E14: =[1]BS!F89/10000 -> 59.27 | F14: =[1]BS!B89/10000 -> 47.67
A15: 合同资产 | B15: =[1]BS!$F$28 -> 0 | C15: =[1]BS!$B$28 -> 0 | D15: 其他应付款 | E15: =[1]BS!$F$90/10000 -> 1954.28 | F15: =[1]BS!$B$90/10000 -> 3507.04
A16: 持有待售资产 | B16: =[1]BS!F29 -> 0 | C16: =[1]BS!G29 ->  | D16: 持有待售负债
A17: 一年内到期的非流动资产 | B17: =[1]BS!F30 -> 0 | C17: =[1]BS!G30 ->  | D17: 一年内到期的非流动负债 | E17: =[1]BS!F95/10000 -> 22.27
A18: 其他流动资产 | B18: =[1]BS!F31 -> 0 | C18: =[1]BS!G31 ->  | D18: 其他流动负债
A19: 流动资产合计 | B19: =SUM(B6:B18) -> 17654.22 | C19: 13849.12 | D19: 流动负债合计 | E19: 3031.25 | F19: 4454.98
A20: 非流动资产： | D20: 非流动负债：
A21: 债权投资 | B21: =[1]BS!F34 -> 0 | C21: 0 | D21: 长期借款 | E21: =[1]BS!F104 -> 0 | F21: =[1]BS!B104 -> 0
A22: 其他债权投资 | B22: =[1]BS!F35 -> 0 | C22: =[1]BS!B35 -> 0 | D22: 应付债券 | E22: =[1]BS!F105 -> 0 | F22: =[1]BS!B105 -> 0
A23: 长期应收款 | B23: =[1]BS!F36 -> 0 | C23: =[1]BS!B36 -> 0 | D23: 其中：优先股
A24: 长期股权投资 | B24: =[1]BS!F39 -> 0 | C24: =[1]BS!B39 -> 0 | D24: 永续债
A25: 其他权益工具投资 | B25: =[1]BS!F40 -> 0 | C25: =[1]BS!B40 -> 0 | D25: 租赁负债 | E25: =[1]BS!$F$106 -> 0 | F25: =[1]BS!$B$106 -> 0
A26: 其他非流动金融资产 | B26: =[1]BS!F41 -> 0 | C26: =[1]BS!B41 -> 0 | D26: 长期应付款 | E26: =[1]BS!$F$107/10000 -> 9700.00 | F26: =[1]BS!$B$107 -> 0
A27: 投资性房地产 | B27: =[1]BS!$F$51 -> 0 | C27: =[1]BS!$B$51 -> 0 | D27: 长期应付职工薪酬
A28: 固定资产 | B28: =[1]BS!$F$57/10000 -> 13251.81 | C28: =[1]BS!$B$57/10000 -> 9755.25 | D28: 预计负债 | E28: =[1]BS!$F$110 -> 0 | F28: =[1]BS!$B$110 -> 0
A29: 在建工程 | B29: =[1]BS!$F$62/10000 -> 9448.84 | C29: =[1]BS!$B$62/10000 -> 7.35 | D29: 递延收益 | E29: =[1]BS!$F$111/10000 -> 19955.44 | F29: =[1]BS!$B$111/10000 -> 14345.25
A30: 生产性生物资产 | D30: 递延所得税负债
A31: 油气资产 | D31: 其他非流动负债
A32: 使用权资产 | B32: =[1]BS!$F$46 -> 0 | C32: =[1]BS!$B$46 -> 0 | D32: 非流动负债合计 | E32: =SUM(E21:E31)-E23-E24 -> 29655.44 | F32: =SUM(F21:F31)-F23-F24 -> 14345.25
A33: 无形资产 | B33: =[1]BS!$F$68/10000 -> 2220.27 | C33: =[1]BS!$B$68/10000 -> 1167.49 | D33: 负债合计 | E33: =E19+E32 -> 32686.69 | F33: =F19+F32 -> 18800.23
A34: 开发支出 | B34: =[1]BS!F69 -> 0 | C34: =[1]BS!B69 -> 0 | D34: 所有者权益：
A35: 商誉 | B35: =[1]BS!F70 -> 0 | C35: =[1]BS!B70 -> 0 | D35: 实收资本 | E35: =[1]BS!$F$122/10000 -> 5614.52 | F35: =[1]BS!$B$122/10000 -> 5614.52
A36: 长期待摊费用 | B36: =[1]BS!F71 -> 0 | C36: =[1]BS!B71 -> 0 | D36: 其他权益工具 | F36: =[1]BS!$B$123 -> 0
A37: 递延所得税资产 | B37: =[1]BS!F72 -> 0 | C37: =[1]BS!B72 -> 0 | D37: 其中：优先股
A38: 其他非流动资产 | B38: =[1]BS!F73 -> 0 | C38: =[1]BS!B73/10000 -> 39.00 | D38: 永续债
A39: 非流动资产合计 | B39: =SUM(B21:B38) -> 24920.92 | C39: =SUM(C21:C38) -> 10969.09 | D39: 资本公积 | E39: =[1]BS!$F$124/10000 -> 3868.50 | F39: =[1]BS!$B$124 -> 0
D40: 减：库存股
D41: 其他综合收益
D42: 专项储备
D43: 盈余公积 | E43: =[1]BS!$F$128/10000 -> 74.66 | F43: =[1]BS!$B$128/10000 -> 71.86
D44: 未分配利润 | E44: =[1]BS!$F$130/10000 -> 330.77 | F44: =[1]BS!$B$130/10000 -> 331.60
D45: 归属于母公司所有者权益合计 | E45: =E35+E36+E39-E40+SUM(E41:E44) -> 9888.45 | F45: =F35+F36+F39-F40+SUM(F41:F44) -> 6017.98
D46: 少数股东权益 | F46: =[1]BS!$B$133 -> 0
D47: 所有者权益合计 | E47: =E45+E46 -> 9888.45 | F47: =F45+F46 -> 6017.98
A48: 资产总计 | B48: =B19+B39 -> 42575.14 | C48: =C19+C39 -> 24818.21 | D48: 负债和所有者权益总计 | E48: =E47+E33 -> 42575.14 | F48: =F47+F33 -> 24818.21

Sheet 利润表
A1: 利润表
A2: 公开02表
A3: =资产负债表!A3 -> 单位：安徽汽车职业技术学院 | C3: 金额单位：万元
A4: 项 目 | B4: 2024年度 | C4: 2023年度
A5: 一、营业总收入 | B5: =SUM(B6:B6) -> 4427.21 | C5: =SUM(C6:C6) -> 4921.73
A6: 其中：营业收入 | B6: =[1]IS!$F$5/10000 -> 4427.21 | C6: =[1]IS!$B$5/10000 -> 4921.73
A7: 二、营业总成本 | B7: =SUM(B8:B15)-B14-B15 -> 7529.37 | C7: =SUM(C8:C15)-C14-C15 -> 6655.50
A8: 其中：营业成本 | B8: =([1]IS!$F$9+[1]IS!$F$10)/10000 -> 5266.37 | C8: =([1]IS!$B$9+[1]IS!$B$10)/10000 -> 4459.42
A9: 税金及附加 | B9: =[1]IS!F11/10000 -> 20.00 | C9: =[1]IS!B11/10000 -> 6.23
A10: 销售费用 | B10: =[1]IS!F12 -> 0 | C10: =[1]IS!B12 -> 0
A11: 管理费用 | B11: =[1]IS!F13/10000 -> 2266.31 | C11: =[1]IS!B13/10000 -> 2264.36
A12: 研发费用 | B12: =[1]IS!F14 -> 0 | C12: =[1]IS!B14 -> 0
A13: 财务费用 | B13: =[1]IS!F15/10000 -> -23.31 | C13: =[1]IS!B15/10000 -> -74.52
A14: 其中:利息费用 | B14: =[1]IS!F16/10000 -> 57.60 | C14: =[1]IS!B16/10000 -> 3.04
A15: 利息收入 | B15: =[1]IS!F17/10000 -> 81.99 | C15: =[1]IS!B17/10000 -> 78.43
A16: 加：其他收益 | B16: =[1]IS!F18/10000 -> 3146.19 | C16: =[1]IS!B18/10000 -> 1784.17
A17: 投资收益（损失以“-”号填列） | B17: =[1]IS!F19 -> 0 | C17: =[1]IS!B19 -> 0
A18: 其中：对联营企业和合营企业的投资收益 | B18: =[1]IS!F20 -> 0 | C18: =[1]IS!B20 -> 0
A19: 以摊余成本计量的金融资产终止确认收益 | B19: =[1]IS!F21 -> 0 | C19: =[1]IS!B21 -> 0
A20: 净敞口套期收益（损失以“-”号填列） | B20: =[1]IS!F22 -> 0 | C20: =[1]IS!B22 -> 0
A21: 公允价值变动收益（损失以“-”号填列） | B21: =[1]IS!F23 -> 0 | C21: =[1]IS!B23 -> 0
A22: 信用减值损失（损失以“-”号填列） | B22: =[1]IS!F24/10000 -> 0.77 | C22: =[1]IS!B24/10000 -> -4.34
A23: 资产减值损失（损失以“-”号填列） | B23: =[1]IS!F25 -> 0 | C23: =[1]IS!B25 -> 0
A24: 资产处置收益（损失以“-”号填列） | B24: =[1]IS!F26 -> 0 | C24: =[1]IS!B26 -> 0
A25: 三、营业利润（亏损以“-”号填列） | B25: =B5-B7+B16+B17+SUM(B20:B24) -> 44.80 | C25: =C5-C7+C16+C17+SUM(C20:C24) -> 46.06
A26: 加：营业外收入 | B26: =[1]IS!F28/10000 -> 18.16 | C26: =[1]IS!B28/10000 -> 4.25
A27: 减：营业外支出 | B27: =[1]IS!F29/10000 -> 3.24 | C27: =[1]IS!B29/10000 -> 1.07
A28: 四、利润总额（亏损总额以“-”号填列） | B28: =B25+B26-B27 -> 59.71 | C28: =C25+C26-C27 -> 49.24
A29: 减：所得税费用 | B29: =[1]IS!F31/10000 -> 57.74 | C29: =[1]IS!B31/10000 -> 43.67
A30: 五、净利润（净亏损以“-”号填列） | B30: =B28-B29 -> 1.97 | C30: =C28-C29 -> 5.57
A31: （一）按经营持续性分类
A32: 1.持续经营净利润（净亏损以“-”号填列） | B32: =[1]IS!$F$34/10000 -> 1.97 | C32: =[1]IS!$B$34/10000 -> 5.57
A33: 2.终止经营净利润（净亏损以“-”号填列）
A34: （二）按所有权归属分类
A35: 1.归属于母公司所有者的净利润（净亏损以“-”号填列） | B35: =[1]IS!$F$37/10000 -> 1.97 | C35: =[1]IS!$B$37/10000 -> 5.57
A36: 2.少数股东损益（净亏损以“-”号填列） | B36: =[1]IS!$F$38 -> 0 | C36: =[1]IS!$B$38 -> 0
A37: 六、其他综合收益的税后净额 | B37: =B38+B53 -> 0 | C37: =C38+C53 -> 0
A38: （一）归属于母公司所有者的其他综合收益的税后净额 | B38: =B39+B45 -> 0 | C38: =C39+C45 -> 0
A39: 1. 不能重分类进损益的其他综合收益 | B39: =SUM(B40:B44) -> 0 | C39: =SUM(C40:C44) -> 0
A40: （1）重新计量设定受益计划变动额 | B40: =[1]IS!F42 -> 0 | C40: =[1]IS!G42 -> 0
A41: （2）权益法下不能转损益的其他综合收益 | B41: =[1]IS!F43 -> 0 | C41: =[1]IS!G43 -> 0
A42: （3）其他权益工具投资公允价值变动 | B42: =[1]IS!F44 -> 0 | C42: =[1]IS!G44 -> 0
A43: （4）企业自身信用风险公允价值变动 | B43: =[1]IS!F45 -> 0 | C43: 0
A44: …… | B44: =[1]IS!F46 -> 0 | C44: 0
A45: 2. 将重分类进损益的其他综合收益 | B45: =SUM(B46:B52) -> 0 | C45: =SUM(C46:C52) -> 0
A46: （1）权益法下可转损益的其他综合收益 | B46: =[1]IS!F48 -> 0 | C46: 0
A47: （2）其他债权投资公允价值变动 | B47: =[1]IS!F49 -> 0 | C47: 0
A48: （3）金融资产重分类计入其他综合收益的金额 | B48: =[1]IS!F50 -> 0 | C48: 0
A49: （4）其他债权投资信用减值准备 | B49: =[1]IS!F51 -> 0 | C49: 0
A50: （5）现金流量套期储备 | B50: =[1]IS!F52 -> 0 | C50: 0
A51: （6）外币财务报表折算差额 | B51: =[1]IS!F53 -> 0 | C51: 0
A52: …… | B52: =[1]IS!F54 -> 0 | C52: 0
A53: （二）归属于少数股东的其他综合收益的税后净额
A54: 七、综合收益总额 | B54: =B55+B56 -> 1.97 | C54: =C55+C56 -> 5.57
A55: （一）归属于母公司所有者的综合收益总额 | B55: =B35+B38 -> 1.97 | C55: =C35+C38 -> 5.57
A56: （二）归属于少数股东的综合收益总额 | B56: =B36+B53 -> 0 | C56: =C36+C53 -> 0
A57: 八、每股收益
A58: （一）基本每股收益（元/股） | B58: / | C58: /
A59: （二）稀释每股收益（元/股） | B59: / | C59: /

Sheet 现金流量表
A1: 现金流量表
A2: 公开03表
A3: =资产负债表!A3 -> 单位：安徽汽车职业技术学院 | C3: 金额单位：万元
A4: 项 目 | B4: 2024年度 | C4: 2023年度
A5: 一、经营活动产生的现金流量
A6: 销售商品、提供劳务收到的现金 | B6: =[1]CF!$D$5/10000 -> 4113.22 | C6: =[1]CF!$E$5/10000 -> 4941.61
A7: 收到的税费返还 | B7: =[1]CF!$D$7 -> 0 | C7: =[1]CF!$E$7 -> 0
A8: 收到其他与经营活动有关的现金 | B8: =[1]CF!$D$8/10000 -> 9419.99 | C8: =[1]CF!$E$8/10000 -> 9668.08
A9: 经营活动现金流入小计 | B9: =SUM(B6:B8) -> 13533.21 | C9: =SUM(C6:C8) -> 14609.69
A10: 购买商品、接受劳务支付的现金 | B10: =[1]CF!D10 -> 0 | C10: =[1]CF!E10 -> 0
A11: 支付给职工以及为职工支付的现金 | B11: =[1]CF!D11/10000 -> 4100.90 | C11: =[1]CF!E11/10000 -> 3344.23
A12: 支付的各项税费 | B12: =[1]CF!D12/10000 -> 102.77 | C12: =[1]CF!E12/10000 -> 17.68
A13: 支付其他与经营活动有关的现金 | B13: =[1]CF!D13/10000 -> 3783.67 | C13: =[1]CF!E13/10000 -> 2268.25
A14: 经营活动现金流出小计 | B14: =SUM(B10:B13) -> 7987.34 | C14: =SUM(C10:C13) -> 5630.16
A15: 经营活动产生的现金流量净额 | B15: =B9-B14 -> 5545.87 | C15: =C9-C14 -> 8979.53
A16: 二、投资活动产生的现金流量
A17: 收回投资收到的现金 | B17: =[1]CF!D17 -> 0 | C17: =[1]CF!E17 -> 0
A18: 取得投资收益收到的现金 | B18: =[1]CF!D18 -> 0 | C18: =[1]CF!E18 -> 0
A19: 处置固定资产、无形资产和其他长期资产收回的现金净额 | B19: =[1]CF!D19/10000 -> 9.22 | C19: =[1]CF!E19/10000 -> 2.99
A20: 处置子公司及其他营业单位收到的现金净额 | B20: =[1]CF!D20 -> 0 | C20: =[1]CF!E20 -> 0
A21: 收到其他与投资活动有关的现金 | B21: =[1]CF!D21/10000 -> 0.34 | C21: =[1]CF!E21 -> 0
A22: 投资活动现金流入小计 | B22: =SUM(B17:B21) -> 9.56 | C22: =SUM(C17:C21) -> 2.99
A23: 购建固定资产、无形资产和其他长期资产支付的现金 | B23: =[1]CF!D23/10000 -> 10609.45 | C23: =[1]CF!E23/10000 -> 2039.17
A24: 投资支付的现金 | B24: =[1]CF!D24 -> 0 | C24: =[1]CF!E24 -> 0
A25: 取得子公司及其他营业单位支付的现金净额 | B25: =[1]CF!D25 -> 0 | C25: =[1]CF!E25 -> 0
A26: 支付其他与投资活动有关的现金 | B26: =[1]CF!D26 -> 0 | C26: =[1]CF!E26 -> 0
A27: 投资活动现金流出小计 | B27: =SUM(B23:B26) -> 10609.45 | C27: =SUM(C23:C26) -> 2039.17
A28: 投资活动产生的现金流量净额 | B28: =B22-B27 -> -10599.89 | C28: =C22-C27 -> -2036.18
A29: 三、筹资活动产生的现金流量
A30: 吸收投资收到的现金 | B30: =[1]CF!D30 -> 0 | C30: =[1]CF!E30 -> 0
A31: 其中：子公司吸收少数股东投资收到的现金 | B31: =[1]CF!D31 -> 0 | C31: =[1]CF!E31 -> 0
A32: 取得借款收到的现金 | B32: =[1]CF!D32 -> 0 | C32: =[1]CF!E32 -> 0
A33: 收到其他与筹资活动有关的现金 | B33: =([1]CF!$D$34+[1]CF!$D$33)/10000 -> 12000.00 | C33: =[1]CF!$E$34/10000 -> 1000.00
A34: 筹资活动现金流入小计 | B34: =SUM(B30+B32+B33) -> 12000.00 | C34: =SUM(C30+C32+C33) -> 1000.00
A35: 偿还债务支付的现金 | B35: =[1]CF!D36 -> 0 | C35: =[1]CF!E36 -> 0
A36: 分配股利、利润或偿付利息支付的现金 | B36: =[1]CF!D37/10000 -> 57.60 | C36: =[1]CF!E37/10000 -> 3.04
A37: 其中：子公司支付给少数股东的股利、利润 | B37: =[1]CF!D38 -> 0 | C37: =[1]CF!E38 -> 0
A38: 支付其他与筹资活动有关的现金 | B38: =[1]CF!D39/10000 -> 3000.00 | C38: =[1]CF!E39/10000 -> 1000.00
A39: 筹资活动现金流出小计 | B39: =B35+B36+B38 -> 3057.60 | C39: =C35+C36+C38 -> 1003.04
A40: 筹资活动产生的现金流量净额 | B40: =B34-B39 -> 8942.40 | C40: =C34-C39 -> -3.04
A41: 四、汇率变动对现金及现金等价物的影响
A42: 五、现金及现金等价物净增加额 | B42: =B15+B28+B40+B41 -> 3888.38 | C42: =C15+C28+C40+C41 -> 6940.31
A43: 加：期初现金及现金等价物余额 | B43: =资产负债表!C6 -> 13584.25 | C43: =[1]CF!E44/10000 -> 6643.94
A44: 六、期末现金及现金等价物余额 | B44: =B42+B43 -> 17472.63 | C44: =C42+C43 -> 13584.25

Sheet 所有者权益变动表
A1: 所有者权益变动表
A2: 公开04表
A3: ='现金流量表 '!A3 -> 单位：安徽汽车职业技术学院 | N3: 金额单位：万元
A4: 项 目 | B4: 2024年度
B5: 归属于母公司所有者权益 | M5: 少数股东权益 | N5: 所有者权益合计
B6: 实收资本 | C6: 其他权益工具 | F6: 资本公积 | G6: 减：库存股 | H6: 其他综合收益 | I6: 专项储备 | J6: 盈余公积 | K6: 未分配利润 | L6: 小计
C7: 优先股 | D7: 永续债 | E7: 其他
A8: 一、上年年末余额 | B8: =B73 -> 5614.52 | C8: =C73 -> 0 | D8: 0 | E8: 0 | F8: 0 | G8: 0 | H8: 0 | I8: 0 | J8: 71.86 | K8: 331.60 | L8: =SUM(B8:F8)-G8+SUM(H8:K8) -> 6017.98 | M8: =M73 -> 0 | N8: =L8+M8 -> 6017.98
A9: 加：会计政策变更 | L9: =SUM(B9:F9)-G9+SUM(H9:K9) -> 0 | N9: =L9+M9 -> 0
A10: 前期差错更正 | L10: 0 | N10: 0
A11: 同一控制下企业合并 | L11: 0 | N11: 0
A12: 其他 | L12: 0 | N12: 0
A13: 二、本年年初余额 | B13: =SUM(B8:B12) -> 5614.52 | C13: =SUM(C8:C12) -> 0 | D13: =SUM(D8:D12) -> 0 | E13: 0 | F13: 0 | G13: 0 | H13: 0 | I13: 0 | J13: 71.86 | K13: 331.60 | L13: 6017.98 | M13: 0 | N13: 6017.98
A14: 三、本年增减变动金额(减少以“-”号填列) | B14: =B15+B16+B21+B25+B32+B35 -> 0 | C14: =C15+C16+C21+C25+C32+C35 -> 0 | D14: 0 | E14: 0 | F14: 3868.50 | G14: 0 | H14: 0 | I14: 0 | J14: 2.81 | K14: -0.83 | L14: 3870.47 | M14: 0 | N14: 3870.47
A15: （一）综合收益总额 | H15: ='利润表 '!B38 -> 0 | K15: ='利润表 '!B35 -> 1.97 | L15: 1.97 | M15: ='利润表 '!B56 -> 0 | N15: 1.97
A16: （二）所有者投入和减少资本 | B16: =B17+B18+B19+B20 -> 0 | C16: =C17+C18+C19+C20 -> 0 | D16: 0 | E16: 0 | F16: 3868.50 | G16: 0 | H16: 0 | I16: 0 | J16: 0 | K16: 0 | L16: 3868.50 | M16: 0 | N16: 3868.50
A17: 1. 所有者投入的普通股 | L17: 0 | N17: 0
A18: 2．其他权益工具持有者投入资本 | L18: 0 | N18: 0
A19: 3．股份支付计入所有者权益的金额 | L19: 0 | N19: 0
A20: 4．其他 | F20: =资产负债表!E39-资产负债表!F39 -> 3868.50 | L20: 3868.50 | N20: 3868.50
A21: （三）利润分配 | B21: =B22+B23+B24 -> 0 | C21: =C22+C23+C24 -> 0 | D21: 0 | E21: 0 | F21: 0 | G21: 0 | H21: 0 | I21: 0 | J21: 2.81 | K21: -2.81 | L21: 0 | M21: 0 | N21: 0
A22: 1．提取盈余公积 | J22: =资产负债表!E43-资产负债表!F43 -> 2.81 | K22: =0-J22 -> -2.81 | L22: 0 | N22: 0
A23: 2．对所有者（或股东）的分配 | L23: 0 | N23: 0
A24: 3．其他 | L24: 0 | N24: 0
A25: （四）所有者权益内部结转 | B25: =SUM(B26:B31) -> 0 | C25: =SUM(C26:C31) -> 0 | D25: =SUM(D26:D31) -> 0 | E25: 0 | F25: 0 | G25: 0 | H25: 0 | I25: 0 | J25: 0 | K25: 0 | L25: 0 | M25: 0 | N25: 0
A26: 1．资本公积转增资本（或股本） | L26: 0 | N26: 0
A27: 2．盈余公积转增资本（或股本） | L27: 0 | N27: 0
A28: 3．盈余公积弥补亏损 | L28: 0 | N28: 0
A29: 4．设定受益计划变动额结转留存收益 | L29: 0 | N29: 0
A30: 5. 其他综合收益结转留存收益 | L30: 0 | N30: 0
A31: 6. 其他 | L31: 0 | N31: 0
A32: （五）专项储备 | B32: =B33-B34 -> 0 | C32: =C33-C34 -> 0 | D32: 0 | E32: 0 | F32: 0 | G32: 0 | H32: 0 | I32: 0 | J32: 0 | K32: 0 | L32: 0 | M32: 0 | N32: 0
A33: 1．本年提取 | L33: 0 | N33: 0
A34: 2．本年使用 | L34: 0 | N34: 0
A35: （六）其他 | L35: 0 | N35: 0
A36: 四、本年年末余额 | B36: =B13+B14 -> 5614.52 | C36: 0 | D36: 0 | E36: 0 | F36: 3868.50 | G36: 0 | H36: 0 | I36: 0 | J36: 74.66 | K36: 330.77 | L36: 9888.45 | M36: 0 | N36: 9888.45
A38: 所有者权益变动表（续）
A39: 公开04表
A40: 单位：安徽汽车职业技术学院 | N40: 金额单位：万元
A41: 项 目 | B41: 2023年度
B42: 归属于母公司所有者权益 | M42: 少数股东权益 | N42: 所有者权益合计
B43: 实收资本 | C43: 其他权益工具 | F43: 资本公积 | G43: 减：库存股 | H43: 其他综合收益 | I43: 专项储备 | J43: 盈余公积 | K43: 未分配利润 | L43: 小计
C44: 优先股 | D44: 永续债 | E44: 其他
A45: 一、上年年末余额 | B45: =56145217.42/10000 -> 5614.52 | C45: 0 | D45: 0 | E45: 0 | F45: 0 | G45: 0 | H45: 0 | I45: 0 | J45: =712989.45/10000 -> 71.30 | K45: =3265888.61000001/10000 -> 326.59 | L45: =SUM(B45:F45)-G45+SUM(H45:K45) -> 6012.41 | N45: =L45+M45 -> 6012.41
A46: 加：会计政策变更 | L46: =SUM(B46:F46)-G46+SUM(H46:K46) -> 0 | N46: =L46+M46 -> 0
A47: 前期差错更正 | L47: 0 | N47: 0
A48: 同一控制下企业合并 | L48: 0 | N48: 0
A49: 其他 | L49: 0 | N49: 0
A50: 二、本年年初余额 | B50: =SUM(B45:B49) -> 5614.52 | C50: =SUM(C45:C49) -> 0 | D50: 0 | E50: 0 | F50: 0 | G50: 0 | H50: 0 | I50: 0 | J50: 71.30 | K50: 326.59 | L50: 6012.41 | M50: 0 | N50: 6012.41
A51: 三、本年增减变动金额(减少以“-”号填列) | B51: =B52+B53+B58+B62+B69+B72 -> 0 | C51: =C52+C53+C58+C62+C69+C72 -> 0 | D51: 0 | E51: 0 | F51: 0 | G51: 0 | H51: 0 | I51: 0 | J51: 0.56 | K51: 5.01 | L51: =SUM(B51:F51)-G51+SUM(H51:K51) -> 5.57 | M51: =M52+M53+M58+M62+M69+M72 -> 0 | N51: 5.57
A52: （一）综合收益总额 | H52: ='利润表 '!C38 -> 0 | K52: ='利润表 '!C35 -> 5.57 | L52: 5.57 | M52: ='利润表 '!C56 -> 0 | N52: 5.57
A53: （二）所有者投入和减少资本 | B53: =B54+B55+B56+B57 -> 0 | C53: =C54+C55+C56+C57 -> 0 | D53: 0 | E53: 0 | F53: 0 | G53: 0 | H53: 0 | I53: 0 | J53: 0 | K53: 0 | L53: 0 | M53: 0 | N53: 0
A54: 1. 所有者投入的普通股 | L54: 0 | N54: 0
A55: 2．其他权益工具持有者投入资本 | L55: 0 | N55: 0
A56: 3．股份支付计入所有者权益的金额 | L56: 0 | N56: 0
A57: 4．其他 | L57: 0 | N57: 0
A58: （三）利润分配 | B58: =B59+B60+B61 -> 0 | C58: =C59+C60+C61 -> 0 | D58: 0 | E58: 0 | F58: 0 | G58: 0 | H58: 0 | I58: 0 | J58: 0.56 | K58: -0.56 | L58: 0 | M58: 0 | N58: 0
A59: 1．提取盈余公积 | J59: =5569.35000000009/10000 -> 0.56 | K59: =0-J59 -> -0.56 | L59: 0 | N59: 0
A60: 2．对所有者（或股东）的分配 | L60: 0 | N60: 0
A61: 3．其他 | L61: 0 | N61: 0
A62: （四）所有者权益内部结转 | B62: =SUM(B63:B68) -> 0 | C62: =SUM(C63:C68) -> 0 | D62: 0 | E62: 0 | F62: 0 | G62: 0 | H62: 0 | I62: 0 | J62: 0 | K62: 0 | L62: 0 | M62: 0 | N62: 0
A63: 1．资本公积转增资本（或股本） | L63: 0 | N63: 0
A64: 2．盈余公积转增资本（或股本） | L64: 0 | N64: 0
A65: 3．盈余公积弥补亏损 | L65: 0 | N65: 0
A66: 4．设定受益计划变动额结转留存收益 | L66: 0 | N66: 0
A67: 5. 其他综合收益结转留存收益 | L67: 0 | N67: 0
A68: 6. 其他 | L68: 0 | N68: 0
A69: （五）专项储备 | B69: =B70-B71 -> 0 | C69: =C70-C71 -> 0 | D69: 0 | E69: 0 | F69: 0 | G69: 0 | H69: 0 | I69: 0 | J69: 0 | K69: 0 | L69: 0 | M69: =M70-M71 -> 0 | N69: 0
A70: 1．本年提取 | L70: 0 | N70: 0
A71: 2．本年使用 | L71: 0 | N71: 0
A72: （六）其他 | L72: 0 | N72: 0
A73: 四、本年年末余额 | B73: =B50+B51 -> 5614.52 | C73: 0 | D73: 0 | E73: 0 | F73: 0 | G73: 0 | H73: 0 | I73: 0 | J73: 71.86 | K73: 331.60 | L73: 6017.98 | M73: 0 | N73: 6017.98

Sheet 三公经费
A1: 安徽汽车职业技术学院2024年度“三公”经费支出决算表
A2: 公开05表
A3: 单位：安徽汽车职业技术学院 | C3: 金额单位：万元
A4: 项目 | B4: 预算数 | C4: 决算数
A5: 因公出国（境）费 | B5: 20 | C5: 0
A6: 公务接待费 | B6: =[2]高职明细!$B$17 -> 11.7 | C6: =[2]高职明细!$O$17 -> 6.05
A7: 公务用车购置及运行费 | B7: =B8+B9 -> 44.3 | C7: =C8+C9 -> 31.15
A8: 其中：公务用车运行维护费 | B8: =14.3 -> 14.3 | C8: =[2]高职明细!$O$21 -> 4.65
A9: 公务用车购置费 | B9: 30 | C9: 26.5
A10: 总计 | B10: =B5+B6+B7 -> 76 | C10: =C5+C6+C7 -> 37.2
